Cogmind - Beta 13 @@@ ROGUE MODE // 2024.05.20 @ 05:54:06 Player: Some Pennies Result: Self-destructed Performance ------------- Evolutions (3) 1500 Regions Visited (8) 1600 Robots Destroyed (175) 875 Value Destroyed (4218) 4218 Prototype IDs (13) 260 Alien Tech Used (0) 0 Bonus (343) 343 TOTAL SCORE: 8796 Bonus ------- High Alert Combat Kills 394 Follower Combat Kills 67 Friendly Fire -118 Cogmind --------- Core Integrity 676/700 Matter 34/300 Energy 107/140 System Corruption 0% Temperature Cool (0) Movement Flying (28) Location -7/Factory Parts ------- > --- POWER (1) -------- Light Deuterium Engine > --- PROPULSION (4) --- Improved Flight Unit Improved Flight Unit Surge Thruster Improved VTOL Module > --- UTILITY (6) ------ Medium Storage Unit Advanced Visual Processing Unit Experimental Sensor Array Improved Signal Interpreter Hacking Suite Hacking Suite > --- WEAPON (2) ------- Improved Datajack > --- INVENTORY (10) --- Light Deuterium Engine Machine Analyzer Transmission Jammer ECM Suite Light Armor Plating Hacking Suite Improved Trap Extractor (6/6 Shock) Assault Cannon Heavy Rocket Launcher Heavy Flail Peak State ------------ > --- POWER ------------ Light Deuterium Engine > --- PROPULSION ------- Improved Flight Unit Improved Flight Unit Surge Thruster Improved VTOL Module > --- UTILITY ---------- Medium Storage Unit Advanced Visual Processing Unit Experimental Sensor Array Improved Signal Interpreter Hacking Suite Hacking Suite > --- WEAPON ----------- Improved Datajack Heavy Flail > --- INVENTORY -------- Light Deuterium Engine Improved Heat Sink Machine Analyzer ECM Suite Light Armor Plating Hacking Suite Improved Trap Extractor Assault Cannon Grenade Launcher [Rating: 46] Favorites ----------- Power Heavy Ion Engine Engine Heavy Ion Engine Power Core Light Nuclear Core Propulsion Light Treads Treads Light Treads Wheel Wheel Flight Unit Improved Flight Unit Utility High-capacity Storage Unit Device Seismic Detector Storage High-capacity Storage Unit Processor Improved Terrain Scan Processor Hackware Hacking Suite Protection Light Armor Plating Weapon Light Cannon Energy Gun Beamcaster Ballistic Gun Enhanced Autogun Ballistic Cannon Light Cannon Launcher Grenade Launcher Impact Weapon Heavy Flail Special Melee Weapon Improved Datajack Build | -11 -10 -10 -9 -9 -9 -8 -8 -7 ------- Run | Yrd Mat Min Mat Min Exi Min Mat Fac Slots Evolved 6 | . . . 2 . . . 2 2 Power . | . . . . . . . . . Propulsion 2 | . . . 1 . . . 1 . Utility 4 | . . . 1 . . . 1 2 Weapon . | . . . . . . . . . Parts Attached 201 | 8 11 4 59 7 1 8 78 25 Power 18 | 1 3 1 2 . . . 8 3 Engine 15 | 1 3 1 2 . . . 5 3 Core 3 | . . . . . . . 3 . Reactor . | . . . . . . . . . Propulsion 47 | 3 2 . 14 . . 1 23 4 Treads 40 | 2 2 . 14 . . 1 21 . Leg . | . . . . . . . . . Wheel 2 | 1 . . . . . . 1 . Hover . | . . . . . . . . . Flight 5 | . . . . . . . 1 4 Utility 51 | 2 2 . 11 4 1 5 17 9 Device 19 | 1 1 . 3 3 . 3 3 5 Storage 5 | 1 1 . . . 1 . 1 1 Processor 4 | . . . 1 . . . 1 2 Hackware 3 | . . . . . . . 3 . Protection 20 | . . . 7 1 . 2 9 1 Artifact . | . . . . . . . . . Weapon 85 | 2 4 3 32 3 . 2 30 9 Energy Gun 11 | . . . 4 . . 1 6 . Energy Cannon . | . . . . . . . . . Ballistic Gun 28 | 2 2 . 10 2 . . 12 . Ballistic Cannon 23 | . 2 3 13 1 . 1 2 1 Launcher 10 | . . . 3 . . . 6 1 Special Weapon . | . . . . . . . . . Impact Weapon 8 | . . . . . . . 3 5 Slashing Weapon . | . . . . . . . . . Piercing Weapon . | . . . . . . . . . Special Melee Weapon 5 | . . . 2 . . . 1 2 Unidentified Prototypes 7 | . . . 3 1 . . 3 . Parts Lost 18 | . 1 1 1 . . 2 13 . Power 4 | . 1 1 . . . . 2 . Propulsion 6 | . . . . . . 1 5 . Utility 7 | . . . 1 . . 1 5 . Weapon 1 | . . . . . . . 1 . Highest Loss Streak 5 | . 1 1 1 . . 1 5 . To Critical Strikes . | . . . . . . . . . Average Slot Usage (%) 97 | . 99 100 99 100 100 99 95 90 Engine 9 | . 13 14 11 11 11 11 5 6 Treads 30 | . 27 28 32 33 33 32 32 . Device 6 | . 13 14 3 8 11 10 3 6 Storage 10 | . 14 14 11 11 11 11 9 7 Processor 4 | . . . 8 11 11 11 2 13 Hackware 4 | . . . . . . . 10 15 Protection 5 | . . . 9 2 . . 9 . Energy Gun 3 | . . . 3 . . 10 5 . Ballistic Gun 9 | . 19 3 6 10 11 1 11 1 Ballistic Cannon 7 | . 8 24 11 11 11 9 . . Naked Turns . | . . . . . . . . . Heaviest Build 105 | 14 52 56 60 57 55 58 105 89 Greatest Support 83 | 40 40 40 60 60 60 60 83 19 Greatest Overweight (x) 28 | 1 2 1 . . . 1 28 8 Average Overweight (x) . | . . 1 . . . . 2 . Largest Inventory Capacity 25 | 8 20 20 20 20 20 20 25 25 Average Capacity 21 | 5 18 20 20 20 20 20 24 11 Most Carried 25 | 5 20 20 20 20 20 20 25 23 Average Carried 20 | 2 14 19 19 19 20 19 24 10 Final Capacity 25 | 8 20 20 20 20 20 20 25 10 Final Carried 24 | 5 18 20 20 20 20 19 24 10 Class Distribution -------------------- 63% | Scavenger-Mutant 33% | Mutant Dominant Class ---------------- Mutant | -10/Materials Mutant | -10/Mines Scavenger-Mutant | -9/Materials Scavenger-Mutant | -9/Mines Scavenger-Mutant | -9/Exiles Scavenger-Mutant | -8/Mines Scavenger-Mutant | -8/Materials Hacker-Scout | -7/Factory Resources | -11 -10 -10 -9 -9 -9 -8 -8 -7 ----------- Run | Yrd Mat Min Mat Min Exi Min Mat Fac Matter Collected 4657 | 295 547 104 1560 123 . 211 1690 127 Remotely . | . . . . . . . . . Salvage Created 6000 | 146 603 126 1496 282 . 228 3067 52 Parts 370 | 12 50 8 115 19 . 7 157 2 Haulers Intercepted 12 | . 2 . 5 . . . 5 . Recyclers Shooed 10 | . . . 2 . . 2 6 . Parts Field Recycled . | . . . . . . . . . Retrieved Matter . | . . . . . . . . . Parts Self-Destructed . | . . . . . . . . . Prevented . | . . . . . . . . . Kills | -11 -10 -10 -9 -9 -9 -8 -8 -7 ------- Run | Yrd Mat Min Mat Min Exi Min Mat Fac Combat Hostiles Destroyed 102 | . 14 3 28 3 . 4 47 3 Guns 55 | . 9 . 7 2 . 2 35 . Cannons 34 | . 5 3 20 1 . 2 3 . AOE 12 | . . . 1 . . . 8 3 Classes Destroyed 14 | 2 6 . 2 . . 2 2 . Worker 16 | . 3 . 7 1 . . 4 1 Builder 4 | . . . 1 . . . 3 . Tunneler 8 | 4 1 1 1 1 . . . . Hauler 12 | . 2 . 5 . . . 5 . Recycler 13 | 1 . 1 3 2 . 1 5 . Mechanic 1 | . . . . . . . 1 . Operator 6 | . 1 . 3 . . . 2 . Watcher 14 | . 3 . 5 . . . 5 1 Swarmer 28 | . 6 3 9 1 . . 6 3 Grunt 49 | . 8 . 11 2 . 2 26 . Brawler 4 | . . . . . . 1 3 . Sentry 19 | . . . 9 . . . 10 . Specialist 2 | . . . . . . . 2 . Hunter 1 | . . . . . . 1 . . Best Kill Streak 6 | 4 4 4 5 2 . 4 6 4 Combat Bots Only 5 | . 3 3 4 2 . 3 5 3 Max Kills in Single Turn 4 | 1 1 1 1 2 . 1 4 3 Gunslinging . | . . . . . . . . . Exploded 3 | . . . 1 . . . 3 2 Melee . | . . . . . . . . . Uniques/NPCs Destroyed . | . . . . . . . . . Combat | -11 -10 -10 -9 -9 -9 -8 -8 -7 -------- Run | Yrd Mat Min Mat Min Exi Min Mat Fac Hostile Shots Fired 467 | . 40 11 127 8 . 34 218 29 Missed 147 | . 16 4 33 3 . 5 65 21 Damage Taken 4777 | . 335 125 1085 49 . 486 2600 97 Core 610 | . 57 13 154 11 . 49 302 24 Absorbed by Shields . | . . . . . . . . . Regen/Repaired (Parts) 43 | . . . 32 . . . 11 . Core Remaining (%) 65 | 100 . 72 . . . 46 45 . Volleys Fired 445 | 10 77 8 134 8 . 21 183 4 Largest 2 | 2 2 2 2 2 . 2 2 1 Hottest 136 | 40 70 70 98 70 . 114 136 44 Shots Fired 878 | 20 154 16 268 16 . 42 358 4 Gun 578 | 20 102 . 105 7 . 24 320 . Cannon 275 | . 52 16 157 9 . 18 21 2 Launcher 25 | . . . 6 . . . 17 2 Special . | . . . . . . . . . Kinetic 700 | 20 154 16 240 16 . 31 221 2 Thermal 153 | . . . 22 . . 11 120 . Explosive 25 | . . . 6 . . . 17 2 Electromagnetic . | . . . . . . . . . Robot Hit Streak 21 | 5 14 4 11 13 . 9 21 6 Robot Miss Streak 6 | 4 4 3 4 1 . 2 6 . Penetration Max . | . . . . . . . . . Secondary Targets 2 | . . . . . . . 2 . Max Gunslinging Chain 1 | . . . . . . . 1 . Shots Hit Robots 558 | 11 94 8 163 8 . 32 239 3 Core Hits 242 | 7 34 5 65 7 . 7 112 5 Critical Kills 2 | . . . 1 . . . 1 . Critical Parts Destroyed 3 | . . . . . . . 2 1 Critical Strikes 28 | . 3 1 9 . . 1 13 1 Burn 9 | . . . . . . . 9 . Destroy 4 | . . . 1 . . . 3 . Blast 14 | . 3 1 8 . . 1 1 . Smash 1 | . . . . . . . . 1 Melee Attacks 11 | . . . . . . . 6 5 Impact 11 | . . . . . . . 6 5 Slashing . | . . . . . . . . . Piercing . | . . . . . . . . . Sneak Attacks . | . . . . . . . . . Combat Hostiles . | . . . . . . . . . Follow-up Attacks . | . . . . . . . . . Damage Inflicted 11135 | 127 1186 159 3005 153 . 542 5584 379 Guns 6529 | 127 656 . 1169 99 . 324 4154 . Cannons 3094 | . 522 159 1748 54 . 218 393 . Explosions 1479 | . 8 . 79 . . . 1037 355 Melee 24 | . . . . . . . . 24 Ramming 9 | . . . 9 . . . . . Kinetic 7475 | 127 1178 159 2554 153 . 346 2958 . Thermal 2278 | . . . 363 . . 196 1719 . Explosive 1341 | . . . 79 . . . 907 355 Electromagnetic 8 | . 8 . . . . . . . Impact 24 | . . . . . . . . 24 Slashing . | . . . . . . . . . Piercing . | . . . . . . . . . Highest Corruption . | . . . . . . . . . Average Corruption . | . . . . . . . . . Corruption Purged . | . . . . . . . . . Corruption Blocked . | . . . . . . . . . Overload Shots . | . . . . . . . . . Overflow Damage 224 | . 14 . 9 . . 16 94 91 Projectiles 39 | . 14 . 9 . . 16 . . Explosions 161 | . . . . . . . 94 67 Melee 24 | . . . . . . . . 24 Knockbacks 35 | . 7 1 16 1 . 4 6 . Impact . | . . . . . . . . . Kinetic 33 | . 7 1 14 1 . 4 6 . Secondary 2 | . . . 2 . . . . . Self-Inflicted Damage 192 | . 108 . . . . . 84 . Shots 6 | . 3 . . . . . 3 . Rammed 3 | . . . 3 . . . . . Targets Rammed 3 | . . . 3 . . . . . Kicked . | . . . . . . . . . Crushed . | . . . . . . . . . Highest Temperature 343 | . 63 60 201 12 . 343 300 9 Average Temperature 44 | . 15 23 40 8 . 103 48 9 Received Heat Transfer 1419 | . 81 . 348 18 . 108 855 9 Siege Activations . | . . . . . . . . . Robots Corrupted . | . . . . . . . . . Combat Hostiles . | . . . . . . . . . Parts Fried 1 | . . . . . . . . 1 Impact Corruptions 1 | . . . . . . . . 1 Robots Melted 1 | . . . . . . . 1 . Combat Hostiles 1 | . . . . . . . 1 . Parts Melted 6 | . . . . . . 1 5 . Heat Transferred 4503 | . . . 592 . . 333 3578 . Parts Sabotaged . | . . . . . . . . . Parts Stolen . | . . . . . . . . . Parts Stripped . | . . . . . . . . . Power Chain Reactions 2 | . 2 . . . . . . . Alert | -11 -10 -10 -9 -9 -9 -8 -8 -7 ------- Run | Yrd Mat Min Mat Min Exi Min Mat Fac Peak Influence 1076 | 25 331 80 345 144 . 116 1076 413 Initial 274 | . 16 . . 134 . . . 274 Average 223 | 8 89 18 189 97 . 52 392 281 Maximum Alert Level 3 | . 1 . 1 . . . 3 2 Low Security (%) 59 | 100 93 100 59 100 . 100 29 . Level 1 24 | . 6 . 40 . . . 28 99 Level 2 9 | . . . . . . . 26 . Level 3 5 | . . . . . . . 14 . Level 4 . | . . . . . . . . . Level 5 . | . . . . . . . . . High Security . | . . . . . . . . . Max Security . | . . . . . . . . . Squads Dispatched 16 | . 3 . 3 . . . 10 . Investigation 5 | . 3 . . . . . 2 . Extermination . | . . . . . . . . . Reinforcement 5 | . . . 3 . . . 2 . Assault 2 | . . . . . . . 2 . Garrison 4 | . . . . . . . 4 . Intercept . | . . . . . . . . . Searches Triggered . | . . . . . . . . . Construction Impeded . | . . . . . . . . . Haulers Reinforced . | . . . . . . . . . Active Scanning Responses . | . . . . . . . . . Cargo Convoy Interrupts . | . . . . . . . . . Stealth | -11 -10 -10 -9 -9 -9 -8 -8 -7 --------- Run | Yrd Mat Min Mat Min Exi Min Mat Fac Distress Signals 9 | . 3 . 2 . . . 4 . Communications Jammed . | . . . . . . . . . Distress Signals . | . . . . . . . . . Times Spotted 177 | . 32 3 50 6 . 4 74 8 Peak Tracking Total 6 | . 4 3 6 3 . 3 5 5 Tactical Retreats 11 | . . . 3 . . . 6 2 Traps | -11 -10 -10 -9 -9 -9 -8 -8 -7 ------- Run | Yrd Mat Min Mat Min Exi Min Mat Fac Traps Triggered 8 | . 3 1 1 . . . 3 . Indirectly . | . . . . . . . . . Trap Hack Attempts 89 | . . . 80 . . . 9 . Triggered . | . . . . . . . . . Disarmed 1 | . . . . . . . 1 . Reprogrammed 11 | . . . 11 . . . . . Reused . | . . . . . . . . . Traps Extracted 13 | . . . 13 . . . . . Installed 7 | . . . 7 . . . . . Triggered . | . . . . . . . . . Most Traps Carried 6 | . . . 6 6 6 6 6 6 Machines | -11 -10 -10 -9 -9 -9 -8 -8 -7 ---------- Run | Yrd Mat Min Mat Min Exi Min Mat Fac Machines Disabled 17 | . 3 . 4 . . . 10 . Max in Single Turn 2 | . 1 . 1 . . . 2 . Machines Repaired . | . . . . . . . . . Machines Dismantled . | . . . . . . . . . Machines Sabotaged . | . . . . . . . . . Overloaded Fab Kills . | . . . . . . . . . Hacking | -11 -10 -10 -9 -9 -9 -8 -8 -7 --------- Run | Yrd Mat Min Mat Min Exi Min Mat Fac Machines Accessed 47 | . 10 2 13 . 4 . 16 2 Terminals 27 | . 7 1 8 . . . 10 1 Fabricators . | . . . . . . . . . Repair Stations 4 | . 1 . 1 . . . 2 . Recycling Units 6 | . 2 . 2 . . . 2 . Scanalyzers 5 | . . . 2 . . . 2 1 Garrison Access . | . . . . . . . . . Total Hacks 141 | . 32 5 44 . 4 . 54 2 Successful 76 | . 15 3 24 . 4 . 29 1 Failed 64 | . 16 2 20 . . . 25 1 Catastrophic 11 | . 5 1 2 . . . 3 . Database Lockouts 1 | . 1 . . . . . . . Manual 84 | . 25 5 24 . . . 30 . Terminals 98 | . 28 4 30 . . . 35 1 Fabricators . | . . . . . . . . . Repair Stations 14 | . 2 . 2 . . . 10 . Recycling Units 16 | . 2 . 8 . . . 6 . Scanalyzers 8 | . . . 4 . . . 3 1 Garrison Access . | . . . . . . . . . Terminal Hacks 47 | . 9 3 13 . 4 . 17 1 Record 5 | . . 1 . . 4 . . . Part Schematic 2 | . 1 . . . . . 1 . Robot Analysis 6 | . 3 1 2 . . . . . Prototype ID Bank 3 | . 1 . 2 . . . . . Open Door 1 | . . 1 . . . . . . Open DSF 1 | . . . . . . . . 1 Emergency Access Points 3 | . . . 1 . . . 2 . Repair Station Index 1 | . . . . . . . 1 . Alert Level 1 | . . . . . . . 1 . Unreport Threat 7 | . 1 . 2 . . . 4 . Locate Traps 8 | . 2 . 3 . . . 3 . Reprogram Traps 1 | . . . 1 . . . . . Recall Investigation 1 | . . . . . . . 1 . Hauler Manifests 2 | . 1 . . . . . 1 . Zone Layout 5 | . . . 2 . . . 3 . Fabricator Hacks . | . . . . . . . . . Repair Station Hacks 7 | . 1 . 2 . . . 4 . Scan Component 5 | . 1 . 1 . . . 3 . Repair 2 | . . . 1 . . . 1 . Recycling Unit Hacks 2 | . . . 1 . . . 1 . Retrieve Components 2 | . . . 1 . . . 1 . Scanalyzer 4 | . . . 2 . . . 2 . Insert Component 2 | . . . 1 . . . 1 . Analyze 2 | . . . 1 . . . 1 . Garrison Access Hacks . | . . . . . . . . . Unauthorized Hacks 16 | . 5 . 6 . . . 5 . Terminals 10 | . 4 . 3 . . . 3 . Botnet 10 | . 4 . 3 . . . 3 . Fabricators . | . . . . . . . . . Repair Stations . | . . . . . . . . . Recycling Units 6 | . 1 . 3 . . . 2 . Reject 2 | . . . 2 . . . . . Mask 4 | . 1 . 1 . . . 2 . Scanalyzers . | . . . . . . . . . Garrison Access . | . . . . . . . . . Data Cores Recovered . | . . . . . . . . . Used . | . . . . . . . . . Hacking Detections 38 | . 10 1 10 . . . 16 1 Full Trace Events 2 | . 1 . . . . . 1 . Feedback Events . | . . . . . . . . . Feedback Blocked . | . . . . . . . . . Robot Schematics Acquired . | . . . . . . . . . Robots Built . | . . . . . . . . . Authchips . | . . . . . . . . . Time . | . . . . . . . . . Total Robot Build Rating . | . . . . . . . . . Part Schematics Acquired 4 | . 1 . 1 . . . 2 . Parts Built . | . . . . . . . . . Authchips . | . . . . . . . . . Time . | . . . . . . . . . Total Part Build Rating . | . . . . . . . . . Parts Repaired 2 | . . . 1 . . . 1 . Time 186 | . . . 50 . . . 136 . Parts Recycled . | . . . . . . . . . Recycled Matter . | . . . . . . . . . Retrieved Matter . | . . . . . . . . . Retrieved Components 18 | . . . 8 . . . 10 . Parts Scanalyzed 2 | . . . 1 . . . 1 . Part Schematics Acquired 2 | . . . 1 . . . 1 . Parts Damaged . | . . . . . . . . . Bothacking | -11 -10 -10 -9 -9 -9 -8 -8 -7 ------------ Run | Yrd Mat Min Mat Min Exi Min Mat Fac Used RIF Installer . | . . . . . . . . . Robots Hacked . | . . . . . . . . . Non-combat . | . . . . . . . . . Combat . | . . . . . . . . . Robot Hacks Applied . | . . . . . . . . . Relay Couplers Released . | . . . . . . . . . Fabnet Peak Effective % . | . . . . . . . . . Robots Rewired . | . . . . . . . . . Allies Hacked . | . . . . . . . . . Hacks Repelled . | . . . . . . . . . Allies | -11 -10 -10 -9 -9 -9 -8 -8 -7 -------- Run | Yrd Mat Min Mat Min Exi Min Mat Fac Total Allies 6 | . . 3 . 3 . . . . Largest Group 3 | . . 3 3 2 2 . . . Highest-Rated Group 47 | . . 40 40 47 47 . . . Highest-Rated Ally 31 | . . 16 16 31 31 . . . Total Orders . | . . . . . . . . . Ally Attacks 22 | . . . 12 10 . . . . Total Damage 290 | . . . 101 189 . . . . Kills 3 | . . . 2 1 . . . . Allies Corrupted . | . . . . . . . . . Allies Melted . | . . . . . . . . . Intel | -11 -10 -10 -9 -9 -9 -8 -8 -7 ------- Run | Yrd Mat Min Mat Min Exi Min Mat Fac Robot Analysis Total 6 | . 3 1 2 . . . . . Derelict Logs Recovered 2 | . . 1 . 1 . . . . Drone Launches . | . . . . . . . . . Drone Recoveries . | . . . . . . . . . Exploration | -11 -10 -10 -9 -9 -9 -8 -8 -7 ------------- Run | Yrd Mat Min Mat Min Exi Min Mat Fac Turns Passed 15861 | 134 2409 1248 3881 789 792 678 5492 438 Spaces Moved 7492 | 86 958 504 1892 414 495 371 1996 776 Core 10 | 9 . . . . . . 1 . Treads 6213 | 22 884 504 1892 414 495 371 1631 . Legs . | . . . . . . . . . Wheels 501 | 55 74 . . . . . 364 8 Hover . | . . . . . . . . . Flight 768 | . . . . . . . . 768 Fastest Speed 25 | 50 95 240 160 160 160 160 160 25 Average Speed 177 | 100 222 240 160 160 160 161 230 29 Slowest Speed 1450 | 160 320 240 160 160 160 240 1450 200 Overloaded Moves 45 | . . . . . . . . 45 Propulsion Burnouts . | . . . . . . . . . Robots Hopped . | . . . . . . . . . Cave-ins Triggered . | . . . . . . . . . Exploration Rate (%) 73 | 4 98 96 97 94 91 70 93 22 Regions Visited 8 Branch Regions 4 Pre-discovered Areas 4 | . . 1 . 3 . . . . Known Exits Taken . | . . . . . . . . . Unknown Exits Taken 8 | 1 1 1 1 1 1 1 1 . Scrap Searched 3 | . . 1 . 1 . 1 . . Spaces Dug 30 | . . . . . . . 25 5 Terrain Destroyed 183 | . 2 . 32 . . 1 130 18 Melee 10 | . . . . . . . 6 4 Projectile 3 | . . . . . . 1 1 1 AOE 170 | . 2 . 32 . . . 123 13 Terrain Rammed . | . . . . . . . . . Walls Destroyed . | . . . . . . . . . Machines Disabled . | . . . . . . . . . Actions | -11 -10 -10 -9 -9 -9 -8 -8 -7 --------- Run | Yrd Mat Min Mat Min Exi Min Mat Fac Total 9214 | 114 1098 528 2474 524 496 403 2598 979 Wait 722 | . 17 . 247 90 . 3 229 136 Move 7484 | 85 957 503 1891 413 494 370 1995 776 Hop . | . . . . . . . . . Pick Up 122 | 11 26 8 17 3 . 1 48 8 Fast Attach 20 | 1 . . 9 . . . 10 . Attach 51 | 6 6 1 4 1 . 2 17 14 Detach 8 | . . . 1 . . . 1 6 Swap 131 | 1 5 3 46 6 1 6 52 11 Drop 121 | . 10 5 35 3 1 . 48 19 Fire 445 | 10 77 8 134 8 . 21 183 4 Melee 11 | . . . . . . . 6 5 Ram . | . . . . . . . . . Kick . | . . . . . . . . . Crush 3 | . . . 3 . . . . . Escape Stasis . | . . . . . . . . . Rewire . | . . . . . . . . . Trap 96 | . . . 87 . . . 9 . Miscellaneous . | . . . . . . . . . Route ------- -11/Scrapyard -10/Materials (discovered 5 exits: *Mat x3 / *Min x2) -10/Mines (discovered 2 exits: *Mat x2) -9/Materials (discovered 7 exits: *Mat x3 / [*Min x2] / [*Sto x2]) -9/Mines (discovered 4 exits: *Mat x2 / *Exi / [*Zio]) -9/Exiles -8/Mines (discovered 2 exits: *Mat x2) -8/Materials (discovered 3 exits: *Fac x3) -7/Factory (discovered 1 exit: *Fac) History --------- Turn | Location | Event 18 | -11/Scrapyard | Discovered new exit (range 15) 135 | -11/Scrapyard | Entered Materials 299 | -10/Materials | Discovered new exit (range 7) 300 | -10/Materials | Build established: Mutant 552 | -10/Materials | Discovered new exit (range 12) 590 | -10/Materials | Discovered new exit (range 4) 1039 | -10/Materials | Discovered new exit (range 5) 1694 | -10/Materials | Discovered new exit (range 16) 2426 | -10/Materials | Central database locked down 2544 | -10/Materials | Entered Mines 2589 | -10/Mines | Met a Derelict bent on vengeance 2823 | -10/Mines | Learned location of Zion (-7) 2855 | -10/Mines | Met a Derelict who couldn't figure out how to use a Trap Extractor 3016 | -10/Mines | Discovered new exit (range 6) 3616 | -10/Mines | Discovered new exit (range 13) 3667 | -10/Mines | Assisted by bots powering up and referring to "LRC-V3" 3792 | -10/Mines | Entered Materials 3792 | -9/Materials | Accompanied by 3 allies 3792 | -9/Materials | Evolved 2 slots: Propulsion x1, Utility x1 3877 | -9/Materials | Lost 3 allies 3933 | -9/Materials | Discovered new exit (range 12) 4135 | -9/Materials | Discovered new exit (range 6) 4569 | -9/Materials | Discovered new exit (range 16) 5169 | -9/Materials | Discovered new exit (range 16) 5453 | -9/Materials | Build established: Scavenger-Mutant 5554 | -9/Materials | Discovered new exit (range 15) 5663 | -9/Materials | Discovered new exit (range 12) 6064 | -9/Materials | Discovered new exit (range 10) 7576 | -9/Materials | Repaired Beamcaster 7673 | -9/Materials | Entered Mines 7803 | -9/Mines | Found a damaged Exp. Sensor Array with a note attached 7817 | -9/Mines | Found Prototype Device 7864 | -9/Mines | Identified Exp. Sensor Array 7959 | -9/Mines | Learned location of Storage (-9) 8167 | -9/Mines | A Derelict revealed a hidden shortcut to a safe place 8228 | -9/Mines | Discovered new exit (range 5) 8309 | -9/Mines | Discovered new exit (range 5) 8314 | -9/Mines | Escorted by a lone wolf Derelict 8444 | -9/Mines | Deemed a non-threat by the Exiles lab entrance 8446 | -9/Mines | Discovered new exit (range 5) 8462 | -9/Mines | Entered Exiles 8462 | -9/Exiles | Found Exiles lab abandoned 8462 | -9/Exiles | Accompanied by 2 allies 9235 | -9/Exiles | Discovered new exit (range 10) 9254 | -9/Exiles | Entered Mines 9266 | -8/Mines | Core integrity fell below 50% 9629 | -8/Mines | Discovered new exit (range 10) 9655 | -8/Mines | Discovered new exit (range 13) 9932 | -8/Mines | Entered Materials 9932 | -8/Materials | Evolved 2 slots: Propulsion x1, Utility x1 11312 | -8/Materials | Discovered new exit (range 15) 13027 | -8/Materials | Discovered new exit (range 8) 13932 | -8/Materials | First assault squad dispatched 14281 | -8/Materials | Garrison activated, responded to threat 14502 | -8/Materials | Lost 3 parts (1n2u) 14577 | -8/Materials | Discovered new exit (range 16) 14607 | -8/Materials | Garrison activated, responded to threat 14646 | -8/Materials | Lost 5 parts (1p3n1u) 14738 | -8/Materials | Core integrity fell below 50% 14998 | -8/Materials | Repaired Broken Exp. Sensor Array? 15424 | -8/Materials | Entered Factory 15424 | -7/Factory | Evolved 2 slots: Utility x2 15633 | -7/Factory | Discovered new exit (range 8) 15633 | -7/Factory | Identified exit to DSF 15635 | -7/Factory | Identified exit to Factory 15724 | -7/Factory | Build established: Hacker-Scout 15862 | -7/Factory | Self-destructed Last Messages --------------- 15796_ S-27 Virus destroyed. 15796_ K-01 Serf destroyed. 15800_ K-01 Serf collects debris. 15802_ The unstable cave ceiling collapses. 15820_ Connecting with Scanalyzer... 15826_ Connecting with DSF Access... 15831_ W-25 Informer suffers critical hit (Smash). 15831_ Destroyed Imp. Hover Unit. 15831_ W-25 Informer system corrupted by crushing effect. 15831_ Lgt. Deuterium Engine fried. 15831_ W-25 Informer destroyed. 15835_ Acquired 35 matter. 15843_ Dropped Lgt. Deuterium Engine. 15845_ Acquired Transmission Jammer. 15846_ Dropped Transmission Jammer. 15847_ Acquired Lgt. Deuterium Engine. 15850_ Dropped Imp. Heat Sink. 15851_ Acquired Transmission Jammer. Map ----- +----------------------------------------------------+ | ?????????????????# "" #?????????# | | ?????????????????# """#?????????# """""" | | ?????????????????# """ """ S"#?????????# """""" | | ?????????????????# """ """ """#?????????# """""" | | ?????????????????# """ """ """#?????????# """""" | | ?????????????????# #?????????# | | ?????????????????# """ """ ] #?????????# | | ?????????????????# """ """ #?????????# /// | | ?????????????????# """ """ ########### // [ | | ?????????????????# + // | | ?????????????????# ##### | | ?????????????????#########+####???# ^ | | ?????????????????????????# #??????# #?## | | ????????????????????????## #??????# #??? | | ????????????????????????# ######## #??? | | ????????????????????????#T +??? | | ????????????????????????## #??? | | ?????????????????????????# #??? | | ???????????ss??????????### #??? | | ???????????s??########## #######+###### | | ????????????o u # ! | | ????????????? # | | ????????????? #### | | ???????????????######### #??# [ | | ???????????????????????###+##### #??# | | ???????????????????????# @ ## #??# """"""""" | | ???????????????????????# ## #### """"""""?? | | ???????????????????????#""" +! + """""""??? | | ???????????????????????#""" ####### """"""???? | | ???????????????????????#""" #?????# """"""???? | | ???????????????????????# #?????# """""????? | | ???????????????????????########??????########????? | | | | | | | | | | | | | | | | | | | | | | | | | | | | | | | | | | | | | +----------------------------------------------------+ Best States ------------- Heat Dissipation 50 Energy Generation 18 Energy Capacity 280 Matter Stores 300 Matter Capacity 300 Sight Range 20 Robot Scan Range 20 Terrain Scan Range 16 Terrain Scan Density 110 ECM Strength 1 Armor Coverage 375 Evasion (%) 65 Targeting Accuracy 8 Recoil Reduction 4 Offensive Hacking 20 Trap Extractor Capacity 6 Item Schematics ----------------- Cargo Storage Unit | -10/Materials | Hacked Beamcaster | -9/Materials | Scanalyzed Imp. VTOL Module | -8/Materials | Scanalyzed Imp. Utility Shielding | -8/Materials | Hacked Robot Schematics ------------------ None Fabricated ------------ Nothing Alien Tech Used ----------------- None Achievements -------------- None Challenges ------------ None Game ------ Seed ZioniteVariableNukerbomber Manual? 0 Play Time 02:21:00 Cumulative 68.8 hours Start 2024.05.19 @ 00:04:17 End 2024.05.20 @ 05:54:06 Sessions 3 Manual Loads 0 Difficulty Rogue Special Mode None Game No. 68 Rogue 63 Adventurer 5 Explorer 0 Win Type - Total 0 Types 0/0/0/0/0/0/0/0/0 Lore% 32 Gallery% 43 Achievement% 28 Wizard Run 0 Options --------- Layout 2 ASCII 0 Keyboard 0 Movement Mouse Keybinds 0 Fullscreen 2 Font 24/Smallcaps Map View 50x44 Zoom Use 0% Tactical HUD 1 Map Filters NONE Filters NONE Steam 1 RUN: 97bee210-9942-417c-9da1-732963f7a528